Cogmind - Beta 16 @@@ ROGUE MODE // 2025.11.12 @ 17:17:45 Player: guru-sr Result: Destroyed by Piercing Trap Performance ------------- Evolutions (0) 0 Regions Visited (2) 400 Robots Destroyed (25) 125 Value Destroyed (456) 456 Prototype IDs (0) 0 Alien Tech Used (0) 0 Bonus (0) 0 TOTAL SCORE: 981 Bonus ------- None Cogmind --------- Core Integrity 0/250 Matter 204/300 Energy 246/250 System Corruption 0% Temperature Cool (2) Movement Treading (250) Ox1 Location -10/Subcaves Parts ------- > --- POWER (1) -------- Ion Engine > --- PROPULSION (2) --- Light Treads Spiked Treads > --- UTILITY (2) ------ High-capacity Storage Unit Structural Scanner > --- WEAPON (2) ------- Beam Cannon Battle Cannon > --- INVENTORY (20) --- Light Treads Improved Heat Sink Structural Scanner Machine Analyzer Subdweller Optics Sensor Array Signal Interpreter Improved Terrain Scanner Seismic Detector Propulsion Shielding Weapon Shielding Light Armor Plating Light Armor Plating Scrap Shield Hacking Suite Hacking Suite Grenade Launcher Mining Claw Peak State ------------ > --- POWER ------------ Ion Engine > --- PROPULSION ------- Light Treads Spiked Treads > --- UTILITY ---------- High-capacity Storage Unit Structural Scanner > --- WEAPON ----------- Subdweller Laser Battle Cannon > --- INVENTORY -------- Improved Heat Sink Structural Scanner Machine Analyzer Visual Processing Unit Subdweller Optics Sensor Array Signal Interpreter Improved Terrain Scanner Seismic Detector Propulsion Shielding Weapon Shielding Light Armor Plating Light Armor Plating Scrap Shield Hacking Suite Hacking Suite Beam Cannon Grenade Launcher Mining Claw [Rating: 13] Favorites ----------- Power Ion Engine Engine Ion Engine Propulsion Light Treads Treads Light Treads Utility Structural Scanner Device Structural Scanner Storage High-capacity Storage Unit Protection Light Armor Plating Weapon Assault Rifle Energy Gun Subdweller Laser Energy Cannon Beam Cannon Ballistic Gun Assault Rifle Ballistic Cannon Battle Cannon Launcher Grenade Launcher Special Weapon Mining Laser Slashing Weapon Mining Claw Build | -11 -10 -10 ------- Run | Yrd Mat Sub Slots Evolved . | . . . Power . | . . . Propulsion . | . . . Utility . | . . . Weapon . | . . . Parts Attached 24 | 7 9 8 Power 2 | 1 1 . Engine 2 | 1 1 . Core . | . . . Reactor . | . . . Propulsion 5 | 2 . 3 Treads 5 | 2 . 3 Leg . | . . . Wheel . | . . . Hover . | . . . Flight . | . . . Utility 7 | 2 3 2 Device 2 | 1 1 . Storage 3 | 1 2 . Processor . | . . . Hackware . | . . . Protection 2 | . . 2 Artifact . | . . . Weapon 10 | 2 5 3 Energy Gun 2 | . 1 1 Energy Cannon 2 | . 2 . Ballistic Gun 2 | 2 . . Ballistic Cannon 1 | . . 1 Launcher 1 | . . 1 Special Weapon 1 | . 1 . Impact Weapon . | . . . Slashing Weapon 1 | . 1 . Piercing Weapon . | . . . Special Melee Weapon . | . . . Unidentified Prototypes . | . . . Parts Lost 1 | . . 1 Power . | . . . Propulsion . | . . . Utility 1 | . . 1 Weapon . | . . . Highest Loss Streak 1 | . . 1 To Critical Strikes . | . . . Average Backups 15 | 2 13 18 Power . | . . . Propulsion . | . . . Utility 11 | . 9 15 Weapon 2 | . 2 2 Tool/Special . | . . . Unused Backups 20 | . 5 15 Power 1 | . 1 . Propulsion 2 | . 2 . Utility 17 | . 2 15 Weapon . | . . . Tool/Special . | . . . Average Slot Usage (%) 99 | . 99 100 Engine 14 | . 14 14 Treads 28 | . 28 28 Device 13 | . 13 12 Storage 14 | . 14 14 Energy Gun 2 | . . 5 Energy Cannon 9 | . 10 7 Ballistic Gun 9 | . 14 3 Ballistic Cannon 4 | . . 9 Peak Build Rating 13 | 9 10 13 Average Rating 9 | 7 8 11 On Entrance 6 | . 9 10 Avg Prop Armor Cover (%) . | . . . Naked Turns . | . . . Heaviest Build 55 | 14 51 55 Greatest Support 40 | 40 40 40 Greatest Overweight (x) 4 | 4 1 1 Average Overweight (x) . | . . 1 Largest Inventory Capacity 20 | 8 20 20 Average Capacity 16 | 7 14 20 Most Carried 20 | 4 20 20 Average Carried 15 | 2 13 19 Final Capacity 20 | 8 20 20 Final Carried 20 | 4 20 19 Class Distribution -------------------- 87% | Mutant 12% | Scavenger-Mutant Dominant Class ---------------- Mutant | -10/Materials Mutant | -10/Subcaves Resources | -11 -10 -10 ----------- Run | Yrd Mat Sub Matter Collected 868 | 310 323 235 Remotely . | . . . Salvage Created 787 | 157 443 187 Parts 51 | 7 29 15 Haulers Intercepted 2 | . 2 . Recyclers Shooed 1 | 1 . . Parts Field Recycled . | . . . Retrieved Matter . | . . . Parts Self-Destructed 4 | . . 4 Prevented . | . . . Parts Restored . | . . . Kills | -11 -10 -10 ------- Run | Yrd Mat Sub Combat Hostiles Destroyed 11 | . 5 6 Guns 3 | . 2 1 Cannons 7 | . 3 4 AOE 1 | . . 1 Classes Destroyed 11 | 2 5 4 Worker 1 | . 1 . Builder 4 | . 4 . Tunneler 4 | 3 1 . Hauler 2 | . 2 . Recycler 1 | 1 . . Operator 2 | . 2 . Swarmer 2 | . . 2 Grunt 5 | . 5 . Sentry 1 | . . 1 Artisan 2 | . . 2 Subdweller 3 | . . 3 Best Kill Streak 3 | 2 3 2 Combat Bots Only 2 | . 2 2 Max Kills in Single Turn 2 | 1 2 1 Gunslinging . | . . . Exploded 1 | . . 1 Melee . | . . . Uniques/NPCs Destroyed . | . . . Combat | -11 -10 -10 -------- Run | Yrd Mat Sub Hostile Shots Fired 67 | . 18 49 Missed 14 | . 2 12 Hits 53 | . 16 37 Projectile 53 | . 16 37 Critical Strikes 2 | . . 2 Damage Taken 999 | . 261 738 Core 273 | . 98 175 Absorbed by Shields . | . . . Regen/Repaired (Parts) 15 | . 15 . Core Remaining (%) 100 | 100 . . Volleys Fired 85 | 10 46 29 Largest 2 | 2 2 2 Hottest 100 | 40 100 93 Shots Fired 157 | 20 81 56 Gun 79 | 20 35 24 Cannon 64 | . 35 29 Launcher 3 | . . 3 Special 11 | . 11 . Kinetic 81 | 20 35 26 Thermal 73 | . 46 27 Explosive 3 | . . 3 Electromagnetic . | . . . Robot Hit Streak 9 | 9 7 9 Robot Miss Streak 3 | 1 3 2 Penetration Max . | . . . Secondary Targets . | . . . Shots Hit Robots 105 | 14 46 45 Core Hits 31 | 5 17 9 Critical Kills 1 | . 1 . Critical Parts Destroyed 1 | . . 1 Critical Strikes 2 | . 1 1 Destroy 2 | . 1 1 Melee Attacks 14 | . 12 2 Impact . | . . . Slashing 14 | . 12 2 Piercing . | . . . Sneak Attacks 2 | . 2 . Combat Hostiles . | . . . Follow-up Attacks . | . . . Damage Inflicted 1563 | 151 873 539 Guns 579 | 151 281 147 Cannons 632 | . 368 264 Explosions 262 | . 134 128 Melee 90 | . 90 . Ramming . | . . . Kinetic 652 | 151 281 220 Thermal 693 | . 502 191 Explosive 128 | . . 128 Electromagnetic . | . . . Impact . | . . . Slashing 90 | . 90 . Piercing . | . . . Highest Corruption . | . . . Average Corruption . | . . . Corruption Purged . | . . . Corruption Blocked . | . . . Overload Shots . | . . . Overflow Damage 66 | . 66 . Projectiles . | . . . Explosions 66 | . 66 . Melee . | . . . Knockbacks 2 | . . 2 Impact . | . . . Kinetic 2 | . . 2 Secondary . | . . . Self-Inflicted Damage 89 | . 88 1 Shots 2 | . 1 1 Rammed . | . . . Targets Rammed . | . . . Kicked . | . . . Crushed . | . . . Highest Temperature 156 | . 156 21 Average Temperature 39 | . 39 18 Received Heat Transfer 276 | . 96 180 Siege Activations . | . . . Martial Activations . | . . . Shielding Activations . | . . . Robots Disrupted . | . . . Combat Hostiles . | . . . Robots Corrupted . | . . . Combat Hostiles . | . . . Parts Fried . | . . . Impact Corruptions . | . . . Robots Melted . | . . . Combat Hostiles . | . . . Parts Melted 2 | . 1 1 Heat Transferred 1199 | . 877 322 Parts Sabotaged . | . . . Parts Stolen . | . . . Parts Stripped . | . . . Power Chain Reactions . | . . . Alert | -11 -10 -10 ------- Run | Yrd Mat Sub Maximum Alert Level . | . . . Low Security (%) 100 | 100 100 . Level 1 . | . . . Level 2 . | . . . Level 3 . | . . . Level 4 . | . . . Level 5 . | . . . High Security . | . . . Max Security . | . . . Peak Influence 70 | 5 70 . Initial . | . . . Average 8 | 1 9 . Influence Increases 421 | 20 331 70 Destroy 0b10 Robot/C 160 | . 100 60 Destroy 0b10 Robot/NC 70 | 20 50 . Destroy Leader 34 | . 24 10 Successful Hack 28 | . 28 . Select Force Hacks 30 | . 30 . Disable Machine 15 | . 15 . Destroy Structure 39 | . 39 . Lose Combat Pursuer 45 | . 45 . Influence Decreases 421 | 20 329 72 Entered New Map 2 | . . 2 Time Decay 419 | 20 329 70 Squads Dispatched 3 | . 3 . Investigation 1 | . 1 . Extermination . | . . . Reinforcement 2 | . 2 . Assault . | . . . Garrison . | . . . Intercept . | . . . Searches Triggered . | . . . Construction Impeded . | . . . Haulers Reinforced . | . . . Active Scanning Responses . | . . . Cargo Convoy Interrupts . | . . . Stealth | -11 -10 -10 --------- Run | Yrd Mat Sub Distress Signals 2 | . 2 . Communications Jammed . | . . . Distress Signals . | . . . Times Spotted 16 | . 10 6 Peak Tracking Total 2 | . 2 2 Tactical Retreats 3 | . 3 . Traps | -11 -10 -10 ------- Run | Yrd Mat Sub Traps Triggered 3 | . 1 2 Indirectly . | . . . Trap Hack Attempts . | . . . Triggered . | . . . Disarmed . | . . . Reprogrammed . | . . . Reused . | . . . Traps Extracted . | . . . Installed . | . . . Triggered . | . . . Machines | -11 -10 -10 ---------- Run | Yrd Mat Sub Machines Disabled 1 | . 1 . Max in Single Turn 1 | . 1 . Machines Repaired . | . . . Machines Dismantled . | . . . Machines Sabotaged . | . . . Overloaded Fab Kills . | . . . Hacking | -11 -10 -10 --------- Run | Yrd Mat Sub Machines Accessed 7 | . 7 . Terminals 5 | . 5 . Fabricators . | . . . Repair Stations 1 | . 1 . Recycling Units 1 | . 1 . Scanalyzers . | . . . Garrison Access . | . . . Total Hacks 24 | . 24 . Successful 11 | . 11 . Failed 13 | . 13 . Catastrophic . | . . . Database Lockouts . | . . . Manual 15 | . 15 . Terminals 17 | . 17 . Fabricators . | . . . Repair Stations 3 | . 3 . Recycling Units 4 | . 4 . Scanalyzers . | . . . Garrison Access . | . . . Terminal Hacks 1 | . 1 . Zone Layout 1 | . 1 . Fabricator Hacks . | . . . Repair Station Hacks 2 | . 2 . Scan Component 1 | . 1 . Repair 1 | . 1 . Recycling Unit Hacks 1 | . 1 . Report Inventory 1 | . 1 . Scanalyzer . | . . . Garrison Access Hacks . | . . . Unauthorized Hacks 7 | . 7 . Terminals 5 | . 5 . Assimilate 1 | . 1 . Botnet 3 | . 3 . Operators 1 | . 1 . Fabricators . | . . . Repair Stations . | . . . Recycling Units 2 | . 2 . Recyclers 1 | . 1 . Tunnel 1 | . 1 . Scanalyzers . | . . . Garrison Access . | . . . Data Cores Recovered . | . . . Used . | . . . Hacking Detections 7 | . 7 . Full Trace Events . | . . . Feedback Events . | . . . Feedback Blocked . | . . . Robot Schematics Acquired . | . . . Robots Built . | . . . Authchips . | . . . Time . | . . . Total Robot Build Rating . | . . . Part Schematics Acquired . | . . . Parts Built . | . . . Authchips . | . . . Time . | . . . Total Part Build Rating . | . . . Part Studies Acquired . | . . . Parts Repaired 1 | . 1 . Time 38 | . 38 . Parts Recycled . | . . . Recycled Matter . | . . . Retrieved Matter . | . . . Retrieved Components . | . . . Parts Scanalyzed . | . . . Part Schematics Acquired . | . . . Parts Damaged . | . . . Bothacking | -11 -10 -10 ------------ Run | Yrd Mat Sub Used RIF Installer . | . . . Robots Hacked . | . . . Non-combat . | . . . Combat . | . . . Robot Hacks Applied . | . . . Relay Couplers Released . | . . . Fabnet Peak Effective % . | . . . Robots Rewired . | . . . Allies Hacked . | . . . Hacks Repelled . | . . . Allies | -11 -10 -10 -------- Run | Yrd Mat Sub Total Allies 1 | . 1 . Largest Group 1 | . 1 . Highest-Rated Group 10 | . 10 . Highest-Rated Ally 10 | . 10 . Total Orders . | . . . Ally Attacks . | . . . Total Damage . | . . . Kills . | . . . Allies Corrupted . | . . . Allies Melted . | . . . Intel | -11 -10 -10 ------- Run | Yrd Mat Sub Active Infowar (turns) 2720 | 107 1439 1174 Terrain 446 | 107 339 . Structural 2274 | . 1100 1174 Robot Analysis Total . | . . . Derelict Logs Recovered 1 | . . 1 Drone Launches . | . . . Drone Recoveries . | . . . Exploration | -11 -10 -10 ------------- Run | Yrd Mat Sub Turns Passed 2946 | 161 1481 1304 Spaces Moved 1219 | 71 674 474 Core 10 | 10 . . Treads 1209 | 61 674 474 Legs . | . . . Wheels . | . . . Hover . | . . . Flight . | . . . Fastest Speed 50 | 50 160 240 Average Speed 202 | 157 176 244 Slowest Speed 250 | 250 240 250 Overloaded Moves . | . . . Propulsion Burnouts . | . . . Robots Hopped . | . . . Potential Cave-ins . | . . . Cave-ins Triggered . | . . . Exploration Rate (%) 45 | 6 94 36 Regions Visited 2 Branch Regions 1 Pre-discovered Areas 1 | . 1 . Known Exits Taken . | . . . Unknown Exits Taken 2 | 1 1 . Scrap Searched . | . . . Spaces Dug 15 | . 15 . Terrain Destroyed 58 | . 38 20 Melee 4 | . 4 . Projectile 11 | . 11 . AOE 43 | . 23 20 Terrain Rammed . | . . . Walls Destroyed . | . . . Machines Disabled . | . . . Actions | -11 -10 -10 --------- Run | Yrd Mat Sub Total 1484 | 99 831 554 Wait 65 | 8 38 19 Move 1217 | 70 673 474 Hop . | . . . Pick Up 33 | 4 26 3 Fast Attach 12 | 7 3 2 Attach 4 | . 2 2 Detach 1 | . 1 . Swap 34 | . 19 15 Drop 19 | . 11 8 Fire 85 | 10 46 29 Melee 14 | . 12 2 Ram . | . . . Kick . | . . . Crush . | . . . Escape Stasis . | . . . Rewire . | . . . Trap . | . . . Miscellaneous . | . . . Route ------- -11/Scrapyard -10/Materials (discovered 5 exits: [*Mat x3] / [*Min] / [*Sub]) -10/Subcaves (discovered 2 exits: *Mat x2) History --------- Turn | Location | Event 12 | -11/Scrapyard | Discovered new exit (range 15) 162 | -11/Scrapyard | Entered Materials 313 | -10/Materials | Build established: Mutant 535 | -10/Materials | Repaired Imp. Terrain Scanner 832 | -10/Materials | Discovered new exit (range 10) 933 | -10/Materials | Discovered new exit (range 6) 1062 | -10/Materials | Discovered new exit (range 16) 1453 | -10/Materials | Discovered new exit (range 14) 1599 | -10/Materials | Discovered new exit (range 10) 1643 | -10/Materials | Entered Subcaves 1865 | -10/Subcaves | Ambushed by angry Subdweller bent on revenge 1871 | -10/Subcaves | Core integrity fell below 50% 1893 | -10/Subcaves | Core integrity fell below 20% 1949 | -10/Subcaves | Discovered new exit (range 6) 2373 | -10/Subcaves | Build established: Scavenger-Mutant 2450 | -10/Subcaves | Identified exit to Materials 2760 | -10/Subcaves | Build established: Mutant 2947 | -10/Subcaves | Destroyed by Piercing Trap Last Messages --------------- 02450_ Acquired derelict log, extracted data. Loading 1 Subcaves exit... 02474_ Sub. Laser shoots sparks and powers down. 02475_ Critical hit (Burn: +37). 02477_ Y-45 Defender destroyed. 02479_ Acquired 43 matter. 02484_ Dropped Lgt. Treads. 02485_ Acquired 4 matter. 02490_ Dropped Broken Sub. Laser. 02496_ Acquired 11 matter. 02498_ Acquired 39 matter. 02578_ Triggered Piercing Trap. 02578_ Spikes shoot up from the floor. 02578_ Critical hit (Impale). 02784_ Acquired 8 matter. 02832_ 0V-UJ4(z): "She is not going to be happy we haven't found any suitable candidates yet." 02947_ Triggered Piercing Trap. 02947_ Spikes shoot up from the floor. 02947_ Critical hit (Impale). Map ----- +----------------------------------------------------+ | ?????????????????????????????????????????????????? | | ?????????????????????????????????????????????????? | | ?????????????????????????????????????????????????? | | ?????????????????????????????????????????????????? | | ?????????????????????????????????????????????????? | | ?????????????????????????????????????????????????? | | ?????????????????????????????????????????????????? | | ?????????????????????????????????????????????????? | | ?????????????????????????????????????????????????? | | ?????????????????????????????????????????????????? | | ?????????????????????????????????????????????????? | | ?????????????????????????????????????????????????? | | ?????????????????????????????????????????????????? | | ?????????????????????????????????????????????????? | | ?????????????????????????????????????????????????? | | ??????????????#######????????????????????????????? | | ?????????????#########???????????????????????????? | | ????????????#### ###????######?????????????????? | | ???????????#### ##????######?????????????????? | | ???????????### ##???### ##?????????????????? | | ???????????## ###??#### ##??????? ?????????? | | ???????????## ###???### #####???? ???????? | | ???????????### ####??## ######?? ??????? | | ???????????#### ####### ## ###? ??????? | | ????????????###### ###### ### ?????? | | ????????????####### ####@ ### ?????? | | ???????????######## ### ????? | | ???????????### ### ????? | | ???????????## ## ^ ????? | | ???????????## ## ###?????? | | ???????????### ## ^ ###?????? | | ???????????### ## ^## ????? | | ????????????### ### #### ### ???? | | ????????????### ### #### ^ ## ???? | | ?????????????## ###### ### ???? | | ?????????????### ####### ### ##### ???? | | ?????????????######???## ## ####### ??????? | | ??????????????#####???### ## ######??????????? | | ?????????????????????###### ####????????????? | | ??????????????#####??### ###??????????????? | | ?????????????########## ####??????????????? | | ????????????#### ##### ####???????????????? | | ????????????### ## #######????????????????? | | ????????????## #######?????????????????? | | #???????????### ### ##?????????????????? | | ##??????????##### ##?????????????????? | | ###??????????##### ##?????????????????? | | ####??############ ##?????????????????? | | ###??############ ^ ##?????????????????? | | ###?## ##### ###?????????????????? | +----------------------------------------------------+ Best States ------------- Heat Dissipation 25 Energy Generation 10 Energy Capacity 250 Matter Stores 300 Matter Capacity 300 Sight Range 16 Terrain Scan Range 16 Terrain Scan Density 10 Armor Coverage 150 Evasion (%) 40 Recoil Reduction 2 Item Schematics ----------------- None Robot Schematics ------------------ None Fabricated ------------ Nothing Repaired ---------- Imp. Terrain Scanner | 31% | -10/Materials Studied --------- None Alien Tech Used ----------------- None Achievements -------------- Art Critic Challenges ------------ None Game ------ Seed PointyAssaultChainsaw Manual? 0 Play Time 00:36:24 Cumulative 9.6 hours Start 2025.11.12 @ 16:41:58 End 2025.11.12 @ 17:17:45 Sessions 1 Manual Loads 0 Difficulty Rogue Special Mode None Game No. 7 Rogue 7 Adventurer 0 Explorer 0 Win Type - Total 1 Types 1/0/0/0/0/0/0/0/0/0 Lore% 6 Gallery% 13 Achievement% 23 Wizard Run 0 Options --------- Layout 1 ASCII 0 Keyboard 0 Movement Mouse Keybinds 0 Fullscreen 1 Font 24/Smallcaps Map View 50x35 Zoom Use 0% Tactical HUD 1 Map Filters NONE Filters NONE Steam 1 RUN: 4635be1f-2fda-46c0-a648-9c0572a3b1b1